bitfinex-derivatives/quotes_ETHF0:USTF0_20250503
["timestamp","ask_amount","ask_price","bid_price","bid_amount"]
[1746257486117,1.09429,1827.2,1827.1,1.93375]
[1746257488113,4.30208,1827.3,1827.2,1.09429]
[1746257488317,4.30203,1827.3,1827.2,5.33619]
[1746257488907,1.09423,1827.3,1827.2,5.33619]
[1746257489319,1.09423,1827.3,1827.2,9.05419]
[1746257490718,2.539,1827.4,1827.2,7.9599]
[1746257490913,4.0134,1827.5,1827.2,7.9599]
[1746257491113,1.09418,1827.4,1827.3,1.09418]
[1746257491309,2.84098,1827.4,1827.3,1.09418]
[1746257492218,2.84098,1827.4,1827.3,4.81218]
[1746257492726,1.09418,1827.4,1827.3,4.81218]
[1746257493317,1.09418,1827.4,1827.3,45.61218]
[1746257494221,1.09418,1827.4,1827.3,47.22048]
[1746257500327,2.69958,1827.4,1827.3,47.22048]
[1746257500825,2.69958,1827.4,1827.3,46.1263]
[1746257501130,2.69958,1827.4,1827.0,13.96581969]
[1746257501131,1.09435,1827.1,1827.0,13.96581969]
[1746257501829,1.09435,1827.1,1827.0,15.06022969]
[1746257502027,2.73865,1827.1,1827.0,11.85242969]
[1746257502325,2.73865,1827.1,1827.0,15.57042969]
[1746257504527,2.73865,1827.1,1827.0,14.47601969]
[1746257505329,2.73865,1827.1,1827.0,7.165]
[1746257506532,2.73865,1827.1,1827.0,8.25941]
[1746257507527,1.92223,1827.2,1827.1,1.09435]
[1746257507723,1.92223,1827.2,1827.1,4.35095]
[1746257514633,2.74539,1827.3,1827.2,1.09429]
[1746257514935,1.09429,1827.3,1827.2,2.68779]
[1746257515136,1.09429,1827.3,1827.2,6.40579]
[1746257516038,7.73182,1827.4,1827.3,1.09423]
[1746257516337,7.73182,1827.4,1827.3,2.68773]
[1746257516731,6.6376,1827.4,1827.3,2.68773]
[1746257517136,6.6376,1827.4,1827.3,6.40573]
[1746257518640,6.6376,1827.4,1827.3,9.85273]
[1746257518936,5.82,1827.4,1827.3,9.85273]
[1746257519137,3.59277,1827.5,1827.4,1.09417]
[1746257519338,3.59277,1827.5,1827.4,3.57547]
[1746257520231,3.59277,1827.5,1827.4,2.4813]
[1746257521141,1.09417,1827.4,1827.3,4.54119]
[1746257521340,2.73227,1827.4,1827.3,6.17209]
[1746257522146,2.73227,1827.4,1827.3,9.89009]
[1746257522841,1.09417,1827.4,1827.3,9.89009]
[1746257525443,3.53097,1827.4,1827.3,9.89009]
[1746257526243,3.53097,1827.4,1827.3,8.25919]
[1746257527843,3.53097,1827.4,1827.3,9.99949]
[1746257537658,3.53097,1827.4,1827.3,8.25919]
[1746257538154,3.53097,1827.4,1827.3,9.98919]
[1746257545056,3.53097,1827.4,1827.3,8.895]
[1746257546355,3.53097,1827.4,1827.3,9.98923]
[1746257546858,3.81965622,1827.4,1827.3,9.98923]
[1746257547257,3.53097,1827.4,1827.3,9.98923]
[1746257552266,3.53097,1827.4,1827.3,8.895]
[1746257552563,3.8197426,1827.4,1827.3,8.895]
[1746257552858,3.53097,1827.4,1827.3,8.895]
[1746257553963,3.81975693,1827.4,1827.3,8.895]
[1746257555065,3.81975723,1827.4,1827.3,9.98923]
[1746257555566,3.53097,1827.4,1827.3,9.98923]
[1746257564473,3.81979801,1827.4,1827.3,9.98923]
[1746257564873,3.53097,1827.4,1827.3,9.98923]
[1746257565674,3.8197782,1827.4,1827.3,9.98923]
[1746257565875,3.53097,1827.4,1827.3,9.98923]
[1746257566782,3.53097,1827.4,1827.3,3.718]
[1746257567080,1.09423,1827.3,1827.2,9.69e-06]
[1746257567282,6.29853226,1827.3,1827.2,9.69e-06]
[1746257567479,11.29853226,1827.3,1827.2,9.69e-06]
[1746257568084,16.02430226,1827.3,1827.0,14.51046018]
[1746257568381,4.30215,1827.1,1827.0,14.51046018]
[1746257568581,4.59095226,1827.1,1827.0,14.51046018]
[1746257568782,12.10515226,1827.1,1827.0,14.51046018]
[1746257569290,15.82315226,1827.1,1827.0,14.51046018]
[1746257570384,15.82315226,1827.1,1826.5,51.01459138]
[1746257570385,1.09465,1826.6,1826.5,1.7369]
[1746257574188,1.09465,1826.6,1826.5,2.83161]
[1746257575591,1.09465,1826.6,1826.5,1.7369]
[1746257576187,1.09465,1826.6,1826.5,2.83161]
[1746257576387,1.09465,1826.6,1826.5,1.7369]
[1746257576891,1.09465,1826.6,1826.5,2.83161]
[1746257577288,1.09465,1826.6,1826.5,1.7369]
[1746257579290,1.09465,1826.6,1826.5,2.83161]
[1746257579492,1.09465,1826.6,1826.5,1.7369]
[1746257580385,1.09465,1826.6,1826.5,2.83161]
[1746257580989,1.09463,1826.7,1826.6,1.09462]
[1746257581190,1.09463,1826.7,1826.6,2.78512]
[1746257582791,1.09463,1826.7,1826.6,43.58512]
[1746257582985,1.09463,1826.7,1826.6,2.78512]
[1746257583989,0.8222,1827.0,1826.6,8.3423]
[1746257584290,1.09453,1826.8,1826.7,4.41325]
[1746257585193,1.09453,1826.8,1826.7,8.13125]
[1746257585489,3.2078,1827.1,1826.7,7.0367]
[1746257585794,1.09449,1826.9,1826.8,2.7279]
[1746257586789,1.09449,1826.9,1826.8,1.6334]
[1746257588096,1.09449,1826.9,1826.8,2.72793]
[1746257590289,1.66,1827.0,1826.8,1.6334]
[1746257590493,1.09441,1827.0,1826.9,1.6213]
[1746257591700,1.09441,1827.0,1826.9,2.71577]
[1746257592492,1.09441,1827.0,1826.9,1.6213]
[1746257593001,1.7345,1827.1,1827.0,1.09441]
[1746257593199,1.09435,1827.1,1827.0,2.82411]
[1746257593393,1.09435,1827.1,1827.0,4.49361]
[1746257595001,1.09435,1827.1,1827.0,3.3992]
[1746257595190,2.76015,1827.1,1827.0,2.5242]
[1746257598401,2.76015,1827.1,1827.0,3.61861]
[1746257598902,2.76015,1827.1,1827.0,2.5242]
[1746257601903,2.76015,1827.1,1827.0,3.61861]
[1746257610005,10.1221,1827.3,1827.2,1.09429]
[1746257610305,4.3021,1827.3,1827.2,1.09429]
[1746257611004,5.1239,1827.3,1827.2,1.09429]
[1746257611305,5.1239,1827.3,1827.2,4.81229]
[1746257612905,5.1239,1827.3,1827.2,3.718]
[1746257614308,1.9161,1827.3,1827.2,3.718]
[1746257616106,2.20452732,1827.3,1827.2,3.718]
[1746257616702,2.20453948,1827.3,1827.2,3.718]
[1746257617107,1.09435,1827.1,1827.0,5.15686]
[1746257617709,3.61955,1827.1,1827.0,6.81806]
[1746257618108,3.61955,1827.1,1827.0,10.53606]
[1746257619006,3.61955,1827.1,1827.0,7.7805]
[1746257619305,7.11580092,1827.1,1827.0,3.718]
[1746257620112,1.09459,1826.7,1826.6,4.2805]
[1746257620410,1.09459,1826.7,1826.6,6.99635]
[1746257621011,1.09459,1826.7,1826.6,5.9017]
[1746257621611,1.09459,1826.7,1826.6,3.443]
[1746257621612,2.77599,1826.7,1826.6,3.443]
[1746257622410,2.77599,1826.7,1826.6,5.0991]
[1746257625213,1.09459,1826.7,1826.6,6.19375]
[1746257625614,1.09459,1826.7,1826.6,5.0991]
[1746257627911,1.09459,1826.7,1826.6,6.19375]
[1746257628818,1.09459,1826.7,1826.6,5.0991]
[1746257629117,1.09459,1826.7,1826.6,6.19375]
[1746257631618,1.09459,1826.7,1826.6,5.0991]
[1746257633224,1.09459,1826.7,1826.6,6.19375]
[1746257633421,1.09459,1826.7,1826.6,5.0991]
[1746257633620,1.09459,1826.7,1826.6,6.19375]
[1746257640727,1.09459,1826.7,1826.6,6.19372]
[1746257641221,0.8342,1827.0,1826.9,1.09447]
[1746257641427,1.09447,1826.9,1826.8,4.30229]
[1746257641628,1.09453,1826.8,1826.7,0.8383]
[1746257642023,1.09459,1826.7,1826.6,3.443]
[1746257642222,3.64939,1826.7,1826.6,3.443]
[1746257642423,3.64939,1826.7,1826.6,4.53765]
[1746257643327,1.09459,1826.7,1826.6,4.53765]
[1746257646734,1.09459,1826.7,1826.6,4.53761]
[1746257648037,1.92429,1826.7,1826.6,4.53761]
[1746257649035,0.8297,1826.7,1826.6,4.53761]
[1746257649635,3.66999,1826.7,1826.6,4.53761]
[1746257651355,2.5754,1826.7,1826.6,4.53761]
[1746257651852,3.66999,1826.7,1826.6,3.443]
[1746257652049,3.66999,1826.7,1826.6,4.53765]
[1746257652255,3.95869086,1826.7,1826.6,4.53765]
[1746257652553,3.95869332,1826.7,1826.6,4.53765]
[1746257652955,3.66999,1826.7,1826.6,4.53765]
[1746257654253,3.66999,1826.7,1826.6,6.23725]
[1746257654558,2.5754,1826.7,1826.6,6.23725]
[1746257655147,2.5754,1826.7,1826.6,7.10205]
[1746257655858,3.66999,1826.7,1826.6,7.10205]
[1746257657056,2.5754,1826.7,1826.6,7.10205]
[1746257657659,3.66999,1826.7,1826.6,7.10205]
[1746257657955,2.5754,1826.7,1826.6,7.10205]
[1746257658162,1.91291,1826.9,1826.8,1.09453]
[1746257658459,1.636,1826.9,1826.8,1.09453]
[1746257658653,9.0278,1827.0,1826.9,1.09447]
[1746257659057,9.0278,1827.0,1826.9,2.79547]
[1746257659360,10.6638,1827.0,1826.9,6.51347]
[1746257659558,10.6638,1827.0,1826.9,9.95847]
[1746257660154,11.75821,1827.0,1826.9,9.95847]
[1746257660661,11.75821,1827.0,1826.9,8.25747]
[1746257661060,11.75821,1827.0,1826.9,9.87677]
[1746257662764,5.93821,1827.0,1826.9,9.87677]
[1746257663662,2.73041,1827.0,1826.9,9.87677]
[1746257665467,0.8578,1827.1,1826.9,8.7823]
[1746257665662,1.09432,1827.2,1827.1,1.09432]
[1746257665852,1.09432,1827.2,1827.1,1.92102]
[1746257666052,2.75172,1827.2,1827.1,1.92102]
[1746257666259,2.75172,1827.2,1827.1,3.50962]
[1746257667165,6.39179402,1827.2,1827.1,3.50962]
[1746257669368,5.29747402,1827.2,1827.1,3.50962]
[1746257671068,1.6574,1827.2,1827.1,3.50962]
[1746257673571,0.8374,1827.3,1827.2,1.09429]
[1746257673774,0.8374,1827.3,1827.2,2.84779]
[1746257674270,0.8374,1827.3,1827.2,6.56579]
[1746257674571,1.93163,1827.3,1827.2,6.56579]
[1746257674969,2.5604,1827.3,1827.2,6.56579]
[1746257675169,3.65463,1827.3,1827.2,6.56579]
[1746257675872,3.65463,1827.3,1827.2,10.00879]
[1746257676572,2.5604,1827.3,1827.2,10.83509]
[1746257677071,3.2078,1827.5,1827.2,14.7408]
[1746257677271,6.06677402,1827.6,1827.5,1.09411]
[1746257677464,3.64007402,1827.6,1827.5,4.53711]
[1746257678172,6.84787402,1827.7,1827.6,1.09405]
[1746257678471,3.64007402,1827.7,1827.6,2.68585]
[1746257679064,3.64007402,1827.7,1827.6,7.68585]
[1746257679272,5.46011103,1827.9,1827.8,1.09393]
[1746257679472,5.46011103,1827.9,1827.8,7.74473]
[1746257679674,5.46011103,1827.9,1827.8,12.74473]
[1746257679874,7.24405044,1828.1,1828.0,1.09381]
[1746257680174,3.77823549,1828.1,1828.0,4.30161]
[1746257680375,3.77823549,1828.1,1828.0,9.30161]
[1746257680572,3.77823549,1828.1,1828.0,50.10161]
[1746257681174,3.77823549,1828.1,1828.0,53.81961]
[1746257682567,3.77823549,1828.1,1828.0,55.56271]
[1746257682980,2.73662,1828.5,1828.4,1.09357]
[1746257683170,2.73662,1828.5,1828.4,4.53557]
[1746257683470,1.6431,1828.5,1828.4,4.53557]
[1746257684175,2.73661,1828.5,1828.4,8.25357]
[1746257684478,1.6431,1828.5,1828.4,8.25357]
[1746257684979,1.6431,1828.5,1828.4,9.92287]
[1746257686178,2.73661,1828.5,1828.4,9.92287]
[1746257686876,2.73661,1828.5,1828.4,8.8293]
[1746257688181,1.6431,1828.5,1828.4,9.92287]
[1746257688872,2.73661,1828.5,1828.4,9.92287]
[1746257689582,1.6431,1828.5,1828.4,9.92287]
[1746257690582,1.09345,1828.6,1828.5,1.09351]
[1746257690780,1.09345,1828.6,1828.5,2.82751]
[1746257690982,1.09345,1828.6,1828.5,1.734]
[1746257691171,1.09345,1828.6,1828.5,6.54551]
[1746257691375,1.09345,1828.6,1828.5,5.452]
[1746257691783,2.74195,1828.6,1828.5,5.452]
[1746257692783,2.74195,1828.6,1828.5,6.54551]
[1746257693085,2.74195,1828.6,1828.5,5.452]
[1746257694876,2.74195,1828.6,1828.5,3.718]
[1746257695080,7.74195,1828.6,1828.5,3.718]
[1746257695584,2.74195,1828.6,1828.5,3.718]
[1746257696182,1.09366,1828.3,1828.2,1.09367]
[1746257697184,1.09366,1828.3,1828.2,4.81167]
[1746257697581,1.09366,1828.3,1828.2,3.718]
[1746257699181,1.09366,1828.3,1828.2,4.81169]
[1746257700290,2.77043,1828.4,1828.2,3.718]
[1746257700489,1.6768,1828.4,1828.3,1.09363]
[1746257700691,1.6768,1828.4,1828.3,2.72813]
[1746257701181,1.6768,1828.4,1828.3,6.44613]
[1746257702088,2.77037,1828.4,1828.3,6.44613]
[1746257702284,1.6768,1828.4,1828.3,6.44613]
[1746257702681,2.77037,1828.4,1828.3,3.718]
[1746257703180,2.77037,1828.4,1828.3,4.81163]
[1746257703485,8.51142,1828.5,1828.4,1.09357]
[1746257703893,2.69142,1828.5,1828.3,6.56039]
[1746257704189,1.6399,1828.4,1828.3,2.84239]
[1746257705089,1.6399,1828.4,1828.3,6.56043]
[1746257706093,2.73347,1828.4,1828.3,6.56043]
[1746257707293,2.73347,1828.4,1828.3,4.81163]
[1746257707487,2.73347,1828.4,1828.3,3.718]
[1746257709594,2.73347,1828.4,1828.3,4.81163]
[1746257710095,1.09357,1828.4,1828.3,4.81161]
[1746257710296,1.09357,1828.4,1828.3,7.39261]
[1746257710495,2.76227,1828.4,1828.3,7.39261]
[1746257711494,1.6687,1828.4,1828.3,7.39261]
[1746257713500,2.76227,1828.4,1828.3,7.39261]
[1746257713799,1.6687,1828.4,1828.3,7.39261]
[1746257714396,1.6687,1828.4,1828.3,8.25811]
[1746257714596,2.69798559,1828.5,1828.4,1.09357]
[1746257714804,2.69798559,1828.5,1828.4,6.23527]
[1746257715003,0.80252559,1828.5,1828.4,6.23527]
[1746257715203,0.80252559,1828.5,1828.4,9.95327]
[1746257715799,1.89603559,1828.5,1828.4,9.95327]
[1746257717008,0.80252559,1828.5,1828.4,9.95327]
[1746257717505,1.89603559,1828.5,1828.4,9.95327]
[1746257726814,0.00652559,1828.5,1828.4,13.16107]
[1746257727918,0.00652559,1828.5,1828.4,31.16447568]
[1746257733917,0.00652559,1828.5,1828.4,38.45543946]
[1746257734124,0.00652559,1828.5,1828.4,27.49664833]
[1746257736022,0.00652559,1828.5,1828.4,32.49664833]
[1746257737118,0.00652559,1828.5,1828.4,27.49664833]
[1746257737625,0.00652559,1828.5,1828.4,32.49664833]
[1746257738720,0.00652559,1828.5,1828.4,27.49664833]
[1746257738923,0.00652559,1828.5,1828.4,32.49664833]
[1746257739117,0.00652559,1828.5,1828.4,27.49664833]
[1746257742823,2.47062559,1828.5,1828.4,27.49664833]
[1746257743427,3.56413559,1828.5,1828.4,28.39320568]
[1746257743727,3.31212559,1828.5,1828.4,29.48677568]
[1746257746226,3.31212559,1828.5,1828.4,26.27897568]
[1746257746428,3.31212559,1828.5,1828.4,29.48677568]
[1746257747030,2.47062559,1828.5,1828.4,29.48677568]
[1746257747328,1.67282559,1828.5,1828.4,13.88827]
[1746257747531,0.00652559,1828.5,1828.4,13.88827]
[1746257748431,0.00652559,1828.5,1828.4,13.07467]
[1746257748932,1.74852559,1828.5,1828.4,13.07467]
[1746257753630,1.74852559,1828.5,1828.4,11.48337]
[1746257754632,1.74852559,1828.5,1828.4,8.27557]
[1746257754831,1.74852559,1828.5,1828.4,11.48337]
[1746257755331,2.84203559,1828.5,1828.4,11.48337]
[1746257755733,1.74852559,1828.5,1828.4,11.48337]
[1746257756335,2.84203559,1828.5,1828.4,11.48337]
[1746257756834,1.74852559,1828.5,1828.4,11.48337]
[1746257761835,1.74852559,1828.5,1828.4,12.31497]
[1746257765034,2.84203559,1828.5,1828.4,11.48337]
[1746257765338,2.84203559,1828.5,1828.4,3.718]
[1746257767037,2.84203559,1828.5,1828.4,4.81157]
[1746257768543,1.74852559,1828.5,1828.4,4.81157]
[1746257768741,1.74852559,1828.5,1828.4,6.42537]
[1746257769730,1.74852559,1828.5,1828.4,7.27587]
[1746257771641,1.74852559,1828.5,1828.4,8.09707]
[1746257776740,2.84203559,1828.5,1828.4,8.09707]
[1746257776940,2.84203559,1828.5,1828.4,7.27587]
[1746257778839,2.84203559,1828.5,1828.4,3.718]
[1746257779044,3.13080343,1828.5,1828.4,3.718]
[1746257780236,3.13076366,1828.5,1828.4,3.718]
[1746257781834,3.12423807,1828.5,1828.4,3.718]
[1746257784047,3.13076366,1828.5,1828.4,3.718]
[1746257784750,2.84203559,1828.5,1828.4,3.718]
[1746257785649,3.13063392,1828.5,1828.4,3.718]
[1746257785953,1.09375,1828.1,1828.0,40.8]
[1746257786142,1.09379,1828.1,1828.0,1.09379]
[1746257786339,1.09379,1828.1,1828.0,2.77109]
[1746257786543,1.09379,1828.1,1828.0,43.57109]
[1746257786947,2.69429,1828.1,1828.0,43.57109]
[1746257787149,2.69429,1828.1,1828.0,47.28909]
[1746257802252,4.30139,1828.4,1828.1,1.09375]
[1746257802457,1.09359,1828.4,1828.3,1.09363]
[1746257803159,1.09359,1828.4,1828.3,6.56213]
[1746257803360,1.09359,1828.4,1828.3,3.718]
[1746257803560,2.76939,1828.4,1828.3,3.718]
[1746257803763,2.76939,1828.4,1828.3,5.42]
[1746257806067,2.76939,1828.4,1828.3,6.51363]
[1746257809569,2.76939,1828.4,1828.3,5.42]
[1746257810075,0.00652559,1828.5,1828.3,5.42]
[1746257810076,1.10007559,1828.5,1828.3,5.42]
[1746257810265,1.10007559,1828.5,1828.4,2.6052]
[1746257810563,0.00652559,1828.5,1828.4,3.69877]
[1746257810965,0.00652559,1828.5,1828.4,44.49877]
[1746257811165,0.00652559,1828.5,1828.4,48.21677]
[1746257818572,0.00652559,1828.5,1828.4,47.34047]
[1746257818760,2.73103559,1828.5,1828.4,46.2469]
[1746257819063,2.73103559,1828.5,1828.4,44.518]
[1746257819666,2.73103559,1828.5,1828.4,3.718]
[1746257820376,2.73103559,1828.5,1828.4,4.81157]
[1746257821268,1.63752559,1828.5,1828.4,4.81157]
[1746257821575,2.73103559,1828.5,1828.4,4.81157]
[1746257821873,2.73103559,1828.5,1828.4,3.718]
[1746257822276,3.01933655,1828.5,1828.4,3.718]
[1746257823277,1.09363,1828.3,1828.2,3.456]
[1746257823576,1.38198155,1828.3,1828.2,3.456]
[1746257823765,1.09363,1828.3,1828.2,3.456]
[1746257823971,3.93467912,1828.3,1828.2,3.456]
[1746257824170,3.64633,1828.3,1828.2,7.174]
[1746257832791,3.93463906,1828.3,1828.2,7.174]
[1746257834088,3.64633,1828.3,1828.2,7.174]
[1746257834291,3.93462517,1828.3,1828.2,7.174]
[1746257835989,3.93457551,1828.3,1828.2,7.174]
[1746257836492,3.64633,1828.3,1828.2,7.174]
[1746257836991,3.64633,1828.3,1828.2,8.7946]
[1746257839294,1.09363,1828.3,1828.2,9.88829]
[1746257839496,13.43753703,1828.4,1828.3,1.09363]
[1746257839699,13.43753703,1828.4,1828.3,4.35773]
[1746257840096,13.43753703,1828.4,1828.3,8.07573]
[1746257841198,7.95586081,1828.4,1828.3,8.07573]
[1746257841398,6.86225081,1828.4,1828.3,8.07573]
[1746257841597,3.65445081,1828.4,1828.3,8.07573]
[1746257844897,1.10005559,1828.5,1828.4,1.09357]
[1746257845191,1.10005559,1828.5,1828.4,2.71027]
[1746257845804,0.00652559,1828.5,1828.4,2.71027]
[1746257846199,0.00652559,1828.5,1828.4,6.42827]
[1746257846606,1.10003559,1828.5,1828.4,6.42827]
[1746257846998,1.92223559,1828.5,1828.4,3.718]
[1746257847199,0.00652559,1828.5,1828.4,4.81157]
[1746257847401,0.00652559,1828.5,1828.4,6.49107]
[1746257863018,1.10003559,1828.5,1828.4,3.718]
[1746257863211,3.55903559,1828.5,1828.4,3.718]
[1746257863919,3.55251,1828.5,1828.4,3.718]
[1746257865820,3.84097748,1828.5,1828.4,3.718]
[1746257866222,3.84750381,1828.5,1828.4,3.718]
[1746257866423,3.84757403,1828.5,1828.4,3.718]
[1746257866721,3.55903559,1828.5,1828.4,4.81157]
[1746257868827,3.55903559,1828.5,1828.4,3.718]
[1746257869226,3.84782436,1828.5,1828.4,3.718]
[1746257869521,3.55903559,1828.5,1828.4,3.718]
[1746257870219,3.84784212,1828.5,1828.4,3.718]
[1746257870621,3.84784117,1828.5,1828.4,3.718]
[1746257870819,3.84784117,1828.5,1828.4,4.81157]
[1746257871327,3.55903559,1828.5,1828.4,3.718]
[1746257871529,3.84785604,1828.5,1828.4,3.718]
[1746257871728,3.55903559,1828.5,1828.4,5.3699]
[1746257872429,3.55903559,1828.5,1828.4,6.46347]
[1746257875632,1.10003559,1828.5,1828.4,6.46347]
[1746257877832,1.10003559,1828.5,1828.4,9.92747]
[1746257882036,1.10003559,1828.5,1828.4,8.8339]
[1746257882635,2.85153559,1828.5,1828.4,7.182]
[1746257882837,3.14037426,1828.5,1828.4,7.182]
[1746257883138,3.14037442,1828.5,1828.4,7.182]
[1746257883329,2.85153559,1828.5,1828.4,7.182]
[1746257883637,3.1403762,1828.5,1828.4,7.182]
[1746257887142,3.14038936,1828.5,1828.4,7.182]
[1746257888837,2.85153559,1828.5,1828.4,7.182]
[1746257889152,3.14041559,1828.5,1828.4,7.182]
[1746257889340,3.1404299,1828.5,1828.4,7.182]
[1746257889541,3.1404299,1828.5,1828.4,8.27557]
[1746257889844,3.1404299,1828.5,1828.4,7.182]
[1746257890543,2.85153559,1828.5,1828.4,7.182]
[1746257890744,3.14044487,1828.5,1828.4,8.9285]
[1746257890938,3.67843559,1828.5,1828.4,10.02207]
[1746257891243,3.67843559,1828.5,1828.4,11.65737]
[1746257892144,3.67843559,1828.5,1828.4,8.19337]
[1746257895459,1.10003559,1828.5,1828.4,8.19337]
[1746257898255,1.38897844,1828.5,1828.4,3.718]
[1746257898760,3.98917844,1828.5,1828.4,3.718]
[1746257903065,3.98902108,1828.5,1828.4,3.718]
[1746257903369,9.80902108,1828.5,1828.4,3.718]
[1746257904464,9.80902108,1828.5,1828.4,5.303]
[1746257904863,9.80895321,1828.5,1828.4,5.303]
[1746257906568,15.98801197,1828.5,1828.4,3.718]
[1746257909373,15.98798049,1828.5,1828.4,3.718]
[1746257910172,15.98796417,1828.5,1828.4,3.718]
[1746257911173,1.09357,1828.4,1828.3,3.465]
[1746257911375,7.16344977,1828.4,1828.3,3.465]
[1746257911975,7.16342634,1828.4,1828.3,3.465]
[1746257912277,7.16342634,1828.4,1828.3,7.183]
[1746257913779,7.16340179,1828.4,1828.3,7.183]
[1746257914681,10.81821426,1828.4,1828.3,7.183]
[1746257915373,7.61041426,1828.4,1828.3,7.183]
[1746257915573,10.81820169,1828.4,1828.3,7.183]
[1746257915880,10.81820169,1828.4,1828.3,3.718]
[1746257917274,10.52958247,1828.4,1828.3,3.718]
[1746257917478,10.81819267,1828.4,1828.3,3.718]
[1746257919473,7.1633802,1828.4,1828.3,3.718]
[1746257919774,6.87477,1828.4,1828.3,3.718]
[1746257920779,7.1633218,1828.4,1828.3,3.718]
[1746257921075,7.16332002,1828.4,1828.3,3.718]
[1746257922878,7.16326776,1828.4,1828.3,3.718]
[1746257923082,13.34242407,1828.4,1828.3,3.718]
[1746257926386,13.34251563,1828.4,1828.3,3.718]
[1746257928188,13.34255378,1828.4,1828.3,3.718]
[1746257929686,10.13475378,1828.4,1828.3,3.718]
[1746257929889,13.34255378,1828.4,1828.3,3.718]
[1746257932393,13.34258402,1828.4,1828.3,3.718]
[1746257934595,19.16258402,1828.4,1828.3,3.718]
[1746257935194,1.09369,1828.2,1828.1,1.6935]
[1746257935496,4.59013846,1828.2,1828.1,1.6935]
[1746257935996,6.27443846,1828.2,1828.1,1.6935]
[1746257937099,6.27442784,1828.2,1828.1,1.6935]
[1746257938898,6.2744075,1828.2,1828.1,1.6935]
[1746257940302,4.5901075,1828.2,1828.1,1.6935]
[1746257940803,4.59013047,1828.2,1828.1,1.6935]
[1746257944500,1.38233047,1828.2,1828.1,1.6935]
[1746257944802,4.59013047,1828.2,1828.1,1.6935]
[1746257945404,4.59024064,1828.2,1828.1,1.6935]
[1746257945603,4.59601299,1828.2,1828.1,1.6935]
[1746257946010,4.59605766,1828.2,1828.1,1.6935]
[1746257947209,4.59610462,1828.2,1828.1,1.6935]
[1746257948907,4.30726235,1828.2,1828.1,1.6935]
[1746257949207,4.59623906,1828.2,1828.1,1.6935]
[1746257952518,4.59627449,1828.2,1828.1,1.6935]
[1746257953920,8.24605841,1828.2,1828.1,1.6935]
[1746257954318,8.24605253,1828.2,1828.1,1.6935]
[1746257955419,9.98155253,1828.2,1828.1,1.6935]
[1746257959123,6.77375253,1828.2,1828.1,1.6935]
[1746257959422,9.98155253,1828.2,1828.1,1.6935]
[1746257961518,9.98162222,1828.2,1828.1,1.6935]
[1746257962018,1.09375,1828.1,1828.0,4.5633]
[1746257962219,3.89802595,1828.1,1828.0,4.5633]
[1746257962422,3.89802595,1828.1,1828.0,6.2292]
[1746257965827,3.89802595,1828.1,1828.0,3.718]
[1746257966127,4.74842595,1828.1,1828.0,3.718]
[1746257966729,8.39824404,1828.1,1828.0,3.718]
[1746257968530,8.39830159,1828.1,1828.0,3.718]
[1746257970130,8.39830159,1828.1,1828.0,5.4182]
[1746257970330,11.60611883,1828.1,1828.0,5.4182]
[1746257972031,11.31693392,1828.1,1828.0,5.4182]
[1746257972233,11.60611683,1828.1,1828.0,5.4182]
[1746257975639,11.60611619,1828.1,1828.0,5.4182]
[1746257977342,11.60611619,1828.1,1828.0,3.718]
[1746257977542,11.60610627,1828.1,1828.0,3.718]
[1746257977942,12.30359817,1828.1,1828.0,3.718]
[1746257979143,12.30359487,1828.1,1828.0,3.718]
[1746257979344,12.30359484,1828.1,1828.0,3.718]
[1746257981148,12.30359309,1828.1,1828.0,3.718]
[1746257982849,12.30354525,1828.1,1828.0,3.718]
[1746257984753,12.30345363,1828.1,1828.0,3.718]
[1746257985141,12.30344908,1828.1,1828.0,3.718]
[1746257986750,12.01442582,1828.1,1828.0,3.718]
[1746257987553,12.30339061,1828.1,1828.0,3.718]
[1746257988145,14.13528291,1828.1,1828.0,3.718]
[1746257988340,14.13528346,1828.1,1828.0,3.718]
[1746257989454,10.92748346,1828.1,1828.0,3.718]
[1746257989651,14.13528346,1828.1,1828.0,3.718]
[1746257993757,14.13522345,1828.1,1828.0,3.718]
[1746257995452,14.13522446,1828.1,1828.0,3.718]
[1746257997261,14.13522694,1828.1,1828.0,3.718]
[1746257999063,14.13521923,1828.1,1828.0,3.718]
[1746258001171,1.09387,1827.9,1827.8,1.5827]
[1746258001372,4.59057111,1827.9,1827.8,1.5827]
[1746258002073,4.59055422,1827.9,1827.8,1.5827]
[1746258002371,4.59055422,1827.9,1827.8,5.3007]
[1746258002372,1.38275422,1827.9,1827.8,5.3007]
[1746258002575,1.38278324,1827.9,1827.8,5.3007]
[1746258002876,1.09387,1827.9,1827.8,5.3007]
[1746258003470,1.3828044,1827.9,1827.8,5.3007]
[1746258003773,1.38281337,1827.9,1827.8,5.3007]
[1746258007378,1.38286215,1827.9,1827.8,5.3007]
[1746258008371,3.87926215,1827.9,1827.8,5.3007]
[1746258009079,3.87926646,1827.9,1827.8,5.3007]
[1746258009582,3.59027,1827.9,1827.8,5.3007]
[1746258010481,3.87929063,1827.9,1827.8,5.3007]
[1746258010979,3.87926675,1827.9,1827.8,5.3007]
[1746258012479,3.87926675,1827.9,1827.8,3.718]
[1746258013273,1.09405,1827.6,1827.5,13.28105405]
[1746258013477,1.38304675,1827.6,1827.5,9.83205405]
[1746258013983,3.03584675,1827.6,1827.5,9.83205405]
[1746258014185,3.03584675,1827.6,1827.5,11.01735405]
[1746258014384,3.03584675,1827.6,1827.5,3.718]
[1746258014580,3.03537738,1827.6,1827.5,3.718]
[1746258015584,6.24317738,1827.6,1827.5,3.718]
[1746258016284,6.24291717,1827.6,1827.5,3.718]
[1746258017283,6.24291717,1827.6,1827.5,5.3428]